bitfinex-derivatives/quotes_BNBF0:USTF0_20250630
["timestamp","ask_amount","ask_price","bid_price","bid_amount"]
[1751276522133,1.3290081,653.95,653.27,1.1404175]
[1751276522333,1.3290081,653.94,653.27,1.1404175]
[1751276522533,1.3290081,653.93,653.27,1.1404175]
[1751276522737,1.3290081,653.92,653.31,1.1404175]
[1751276522935,1.3290081,653.91,653.32,1.1404175]
[1751276523138,1.3290081,653.9,653.32,1.1404175]
[1751276523434,1.3290081,653.9,653.18,1.5205567]
[1751276523435,1.3290081,653.89,653.33,1.1404175]
[1751276523637,1.3290081,653.88,653.33,1.1404175]
[1751276523834,1.3290081,653.87,653.33,1.1404175]
[1751276524034,1.3290081,653.86,653.33,1.1404175]
[1751276524235,1.3290081,653.85,653.33,1.1404175]
[1751276524441,1.3290081,653.84,653.3,1.1404175]
[1751276524639,1.3290081,653.83,653.3,1.1404175]
[1751276524836,1.3290081,653.82,653.3,1.1404175]
[1751276525040,1.3290081,653.81,653.3,1.1404175]
[1751276525340,1.3290081,653.8,653.28,1.1404175]
[1751276525640,1.3290081,653.79,653.29,1.1404175]
[1751276525840,1.3290081,653.78,653.28,1.1404175]
[1751276526040,1.3290081,653.77,653.28,1.1404175]
[1751276526240,1.3290081,653.76,653.28,1.1404175]
[1751276526541,1.3290081,653.75,653.28,1.1404175]
[1751276526740,1.3290081,653.74,653.27,1.1404175]
[1751276526938,1.3290081,653.73,653.27,1.1404175]
[1751276527138,1.3290081,653.72,653.26,1.1404175]
[1751276527342,0.26623926,654.05,653.26,1.1404175]
[1751276527542,1.3290275,654.04,653.26,1.1404175]
[1751276527737,1.3290275,654.03,653.26,1.1404175]
[1751276527937,1.3290275,654.02,653.26,1.1404175]
[1751276528142,1.3290275,654.01,653.26,1.1404175]
[1751276528338,1.3290275,654.0,653.26,1.1404175]
[1751276528541,1.3290275,653.99,653.26,1.1404175]
[1751276528739,1.3290275,653.98,653.26,1.1404175]
[1751276529037,1.3290275,653.97,653.26,1.1404175]
[1751276529339,1.3290275,653.96,653.26,1.1404175]
[1751276529539,1.3290275,653.95,653.26,1.1404175]
[1751276529839,1.3290275,653.94,653.25,1.1404175]
[1751276530037,1.3290275,653.93,653.24,1.1404175]
[1751276530243,1.3290275,653.92,653.24,1.1404175]
[1751276530440,1.3290275,653.91,653.25,1.1404175]
[1751276530645,1.3290275,653.9,653.24,1.1404175]
[1751276530840,1.3290275,653.89,653.24,1.1404175]
[1751276531040,1.3290275,653.88,653.24,1.1404175]
[1751276531245,1.3290275,653.87,653.24,1.1404175]
[1751276531544,1.3290275,653.86,653.24,1.1404175]
[1751276531739,1.3290275,653.85,653.24,1.1404175]
[1751276531944,1.3290275,653.84,653.24,1.1404175]
[1751276532140,1.3290275,653.83,653.24,1.1404175]
[1751276532440,1.3290275,653.82,653.24,1.1404175]
[1751276532642,1.3290275,653.81,653.24,1.1404175]
[1751276532844,1.3290275,653.8,653.24,1.1404175]
[1751276533042,1.3290275,653.79,653.24,1.1404175]
[1751276533242,1.3290275,653.78,653.24,1.1404175]
[1751276533444,1.3290275,653.77,653.24,1.1404175]
[1751276533643,1.3290275,653.76,653.24,1.1404175]
[1751276533846,1.3290275,653.75,653.24,1.1404175]
[1751276534045,1.3290275,653.74,653.24,1.1404175]
[1751276534348,1.3290275,653.73,653.24,1.1404175]
[1751276534548,0.26623926,654.05,653.24,1.1404175]
[1751276534745,1.3290422,654.04,653.24,1.1404175]
[1751276534948,1.3290422,654.03,653.24,1.1404175]
[1751276535145,1.3290422,654.02,653.25,1.1404175]
[1751276535346,1.3290422,654.01,653.25,1.1404175]
[1751276535649,1.3290422,654.0,653.25,1.1404175]
[1751276535848,1.3290422,653.99,653.25,1.1404175]
[1751276536050,1.3290422,653.98,653.26,1.1404175]
[1751276536249,1.3290422,653.97,653.27,1.1404175]
[1751276536453,1.3290422,653.96,653.26,1.1404175]
[1751276536752,1.3290422,653.95,653.26,1.1404175]
[1751276537049,1.3290422,653.94,653.21,1.1404175]
[1751276537352,1.3290422,653.93,653.18,1.1404175]
[1751276537547,1.3290422,653.92,653.18,1.1404175]
[1751276537847,0.26623926,654.05,653.17,0.26620056]
[1751276537848,1.3290422,653.91,653.17,1.40661806]
[1751276538154,1.3290422,653.9,653.17,1.40661806]
[1751276538349,1.3290422,653.89,653.18,1.1404175]
[1751276538548,1.3290422,653.88,653.18,1.1404175]
[1751276538748,1.3290422,653.87,653.18,1.1404175]
[1751276538951,1.3290422,653.86,653.18,1.1404175]
[1751276539153,0.26623926,654.05,653.19,1.1404175]
[1751276539154,1.3290422,653.85,653.19,1.1404175]
[1751276539354,1.3290422,653.84,653.18,1.1404175]
[1751276539550,1.3290422,653.83,653.18,1.1404175]
[1751276539753,1.3290422,653.82,653.18,1.1404175]
[1751276539956,1.3290422,653.81,653.18,1.1404175]
[1751276540155,1.3290422,653.8,653.18,1.1404175]
[1751276540456,1.3290422,653.79,653.18,1.1404175]
[1751276540756,1.3290422,653.78,653.17,1.40661806]
[1751276540955,1.3290422,653.77,653.17,1.40661806]
[1751276541151,1.3290422,653.76,653.17,1.40661806]
[1751276541354,1.3290422,653.75,653.18,1.1404175]
[1751276541554,1.3290422,653.74,653.18,1.1404175]
[1751276541752,1.3290422,653.73,653.18,1.1404175]
[1751276541953,0.26623926,654.05,653.18,1.1404175]
[1751276542155,1.3307959,654.04,653.18,1.1404175]
[1751276542357,1.3307959,654.03,653.18,1.1404175]
[1751276542553,1.3307959,654.02,653.18,1.1404175]
[1751276542758,1.3307959,654.01,653.18,1.1404175]
[1751276542958,1.3307959,654.0,653.18,1.1404175]
[1751276543159,1.3307959,653.99,653.18,1.1404175]
[1751276543455,1.3307959,653.98,653.18,1.1404175]
[1751276543654,1.3307959,653.97,653.18,1.1404175]
[1751276543859,1.3307959,653.96,653.18,1.1404175]
[1751276544059,1.3307959,653.95,653.18,1.1404175]
[1751276544355,1.3307959,653.94,653.18,1.1404175]
[1751276544559,1.3307959,653.93,653.18,1.1404175]
[1751276544759,1.3307959,653.92,653.16,1.1404175]
[1751276544960,1.3307959,653.91,653.16,1.1404175]
[1751276545156,1.3307959,653.9,653.16,1.1404175]
[1751276545458,1.3307959,653.89,653.16,1.1404175]
[1751276545756,1.3307959,653.88,653.17,1.1404175]
[1751276545961,1.3307959,653.87,653.17,1.1404175]
[1751276546157,1.3307959,653.86,653.16,1.1404175]
[1751276546362,1.3307959,653.85,653.16,1.1404175]
[1751276546558,1.3307959,653.84,653.16,1.1404175]
[1751276546757,1.3307959,653.83,653.16,1.1404175]
[1751276546959,1.3307959,653.82,653.14,0.26625759]
[1751276547161,1.3307959,653.81,653.14,0.26625759]
[1751276547462,1.3307959,653.8,653.14,0.26625759]
[1751276547661,1.3307959,653.79,653.14,0.26625759]
[1751276547957,1.3307959,653.78,653.14,0.26625759]
[1751276548160,1.3307959,653.77,653.14,0.26625759]
[1751276548357,1.3307959,653.76,653.14,0.26625759]
[1751276548561,1.3307959,653.75,653.14,0.26625759]
[1751276548761,1.3307959,653.74,653.14,0.26625759]
[1751276548960,1.3307959,653.73,653.14,0.26625759]
[1751276549159,1.3307959,653.72,653.14,0.26625759]
[1751276549361,1.5240837,653.99,653.14,0.26625759]
[1751276549562,1.3311206,653.98,653.14,0.26625759]
[1751276549764,1.3311206,653.97,653.14,0.26625759]
[1751276549963,1.3311206,653.96,653.14,0.26625759]
[1751276550267,1.3311206,653.95,653.14,0.26625759]
[1751276550466,1.3311206,653.94,653.14,0.26625759]
[1751276550764,1.3311206,653.93,653.14,0.26625759]
[1751276550963,1.3311206,653.92,653.14,0.26625759]
[1751276551167,1.3311206,653.91,653.14,0.26625759]
[1751276551367,1.3311206,653.9,653.14,0.26625759]
[1751276551569,1.3311206,653.89,653.14,0.26625759]
[1751276551768,1.3311206,653.88,653.14,0.26625759]
[1751276551969,1.3311206,653.87,653.16,1.1404175]
[1751276552264,1.3311206,653.86,653.15,1.1404175]
[1751276552467,1.3311206,653.85,653.15,1.1404175]
[1751276552669,1.3311206,653.84,653.14,1.1404175]
[1751276552872,1.3311206,653.83,653.14,1.1404175]
[1751276553165,1.3311206,653.82,653.14,1.1404175]
[1751276553366,1.3311206,653.81,653.12,1.1404175]
[1751276553667,1.3311206,653.8,653.12,1.1404175]
[1751276553870,1.3311206,653.79,653.12,1.1404175]
[1751276554065,1.3311206,653.78,653.12,1.1404175]
[1751276554268,1.3311206,653.77,653.12,1.1404175]
[1751276554470,1.3311206,653.76,653.12,1.1404175]
[1751276554666,1.3311206,653.75,653.12,1.1404175]
[1751276554870,1.3311206,653.74,653.12,1.1404175]
[1751276555070,1.3311206,653.73,653.12,1.1404175]
[1751276555272,1.3311206,653.72,653.12,1.1404175]
[1751276555472,1.3311206,653.71,653.12,1.1404175]
[1751276555672,1.3311206,653.7,653.09,1.1404175]
[1751276555871,1.3311206,653.69,653.09,1.1404175]
[1751276556170,1.3311206,653.68,653.09,1.1404175]
[1751276556373,1.3311206,653.67,653.02,1.40671788]
[1751276556567,1.5240837,653.82,653.03,1.1404175]
[1751276556870,1.3313816,653.81,653.03,1.1404175]
[1751276557069,1.3313816,653.8,653.03,1.1404175]
[1751276557271,1.3313816,653.79,653.03,1.1404175]
[1751276557467,1.3313816,653.78,653.03,1.1404175]
[1751276557667,1.3313816,653.77,653.03,1.1404175]
[1751276557866,1.3313816,653.76,653.03,1.1404175]
[1751276558067,1.3313816,653.75,653.02,1.40671788]
[1751276558372,1.3313816,653.74,653.02,1.40671788]
[1751276558573,1.3313816,653.73,653.02,1.40671788]
[1751276558773,1.3313816,653.72,653.02,1.40671788]
[1751276558969,1.3313816,653.71,653.02,1.40671788]
[1751276559170,1.3313816,653.7,653.02,1.40671788]
[1751276559374,1.3313816,653.69,653.02,0.26630038]
[1751276559573,1.3313816,653.68,653.02,0.26630038]
[1751276559776,1.3313816,653.67,653.02,0.26630038]
[1751276560076,1.5240837,653.84,653.02,0.26630038]
[1751276560275,1.3315497,653.83,653.02,0.26630038]
[1751276560475,1.3315497,653.82,653.02,0.26630038]
[1751276560675,1.3315497,653.81,653.02,0.26630038]
[1751276560870,1.3315497,653.8,653.02,0.26630038]
[1751276561071,1.3315497,653.79,653.02,0.26630038]
[1751276561375,1.3315497,653.78,653.02,0.26630038]
[1751276561575,1.5240837,653.88,653.02,0.26630038]
[1751276561576,1.3315497,653.77,653.02,0.26630038]
[1751276561775,1.3315497,653.76,653.02,0.26630038]
[1751276562074,1.3315497,653.75,653.02,0.26630038]
[1751276562271,1.3315497,653.74,653.02,0.26630038]
[1751276562477,1.3315497,653.73,653.02,0.26630038]
[1751276562776,1.3315497,653.72,653.02,0.26630038]
[1751276562976,1.3315497,653.71,653.02,0.26630038]
[1751276563177,1.3315497,653.7,653.02,0.26630038]
[1751276563377,1.3315497,653.69,653.02,0.26630038]
[1751276563675,1.3315497,653.68,653.02,0.26630038]
[1751276563875,1.3315497,653.67,653.02,0.26630038]
[1751276564074,1.5240837,653.87,653.02,0.26630038]
[1751276564277,1.331779,653.86,653.02,0.26630038]
[1751276564476,1.331779,653.85,653.02,0.26630038]
[1751276564676,1.331779,653.84,653.02,0.26630038]
[1751276564876,1.331779,653.83,653.02,0.26630038]
[1751276565074,1.331779,653.82,653.02,0.26630038]
[1751276565280,1.331779,653.81,653.02,0.26630038]
[1751276565574,1.331779,653.8,653.02,0.26630038]
[1751276565877,1.331779,653.79,653.02,0.26630038]
[1751276566078,1.331779,653.78,653.02,0.26630038]
[1751276566273,1.331779,653.77,653.02,0.26630038]
[1751276566476,1.331779,653.76,653.02,0.26630038]
[1751276566776,1.331779,653.75,653.02,0.26630038]
[1751276566975,1.331779,653.74,653.02,0.26630038]
[1751276567175,1.331779,653.73,653.02,0.26630038]
[1751276567377,1.331779,653.72,653.02,0.26630038]
[1751276567577,1.331779,653.71,653.02,0.26630038]
[1751276567779,1.331779,653.7,653.02,0.26630038]
[1751276568080,1.331779,653.69,653.02,0.26630038]
[1751276568277,1.5240837,653.88,653.02,0.26630038]
[1751276568278,1.331779,653.68,653.02,0.26630038]
[1751276568483,1.331779,653.67,653.02,0.26630038]
[1751276568679,1.331779,653.66,653.02,0.26630038]
[1751276568880,1.331779,653.65,653.02,0.26630038]
[1751276569083,1.331779,653.64,653.02,0.26630038]
[1751276569382,1.331779,653.63,653.02,0.26630038]
[1751276569578,1.331779,653.62,653.02,0.26630038]
[1751276569782,1.331779,653.61,653.02,0.26630038]
[1751276569983,1.331779,653.6,653.02,0.26630038]
[1751276570180,1.331779,653.59,653.02,0.26630038]
[1751276570384,1.331779,653.58,653.02,0.26630038]
[1751276570581,1.331779,653.57,653.02,0.26630038]
[1751276570880,1.331779,653.56,653.02,0.26630038]
[1751276571181,1.331779,653.55,653.02,0.26630038]
[1751276571380,1.5240837,654.0,653.02,0.26630038]
[1751276571582,1.3293863,653.99,653.02,0.26630038]
[1751276571782,1.3293863,653.98,653.02,0.26630038]
[1751276571981,1.3293863,653.97,653.02,0.26630038]
[1751276572185,1.3293863,653.96,653.02,0.26630038]
[1751276572381,1.3293863,653.95,653.02,0.26630038]
[1751276572585,1.3293863,653.94,653.02,0.26630038]
[1751276572782,1.3293863,653.93,653.02,0.26630038]
[1751276572985,1.3293863,653.92,653.02,0.26630038]
[1751276573285,1.3293863,653.91,653.02,0.26630038]
[1751276573581,1.3293863,653.9,653.02,0.26630038]
[1751276573886,1.3293863,653.89,653.02,0.26630038]
[1751276574082,1.3293863,653.88,653.02,0.26630038]
[1751276574282,1.3293863,653.87,653.02,0.26630038]
[1751276574585,1.3293863,653.86,653.02,0.26630038]
[1751276574886,1.3293863,653.85,653.02,0.26630038]
[1751276575186,1.3293863,653.84,653.02,0.26630038]
[1751276575386,1.3293863,653.83,653.02,0.26630038]
[1751276575688,1.3293863,653.82,653.02,0.26630038]
[1751276575882,1.3293863,653.81,653.02,0.26630038]
[1751276576085,1.3293863,653.8,653.02,0.26630038]
[1751276576286,1.3293863,653.79,653.02,0.26630038]
[1751276576480,1.3293863,653.78,653.02,0.26630038]
[1751276576784,1.3293863,653.77,653.02,0.26630038]
[1751276576982,1.3293863,653.76,653.02,0.26630038]
[1751276577185,1.3293863,653.75,653.02,0.26630038]
[1751276577385,1.5240837,654.04,653.02,0.26630038]
[1751276577386,1.3293863,653.74,653.02,0.26630038]
[1751276577682,1.3293863,653.73,653.02,0.26630038]
[1751276577881,1.3293863,653.72,653.02,0.26630038]
[1751276578186,1.3293863,653.71,653.02,0.26630038]
[1751276578381,1.3293863,653.7,653.02,0.26630038]
[1751276578586,1.3293863,653.69,653.02,0.26630038]
[1751276578783,1.3293863,653.68,653.02,0.26630038]
[1751276578982,1.3293863,653.67,653.02,0.26630038]
[1751276579182,1.3293863,653.66,653.02,0.26630038]
[1751276579385,1.3293863,653.65,653.02,0.26630038]
[1751276579681,1.3293863,653.64,653.02,0.26630038]
[1751276579885,1.3293863,653.63,653.02,0.26630038]
[1751276580083,1.3293863,653.62,653.02,0.26630038]
[1751276580282,1.3293863,653.61,653.02,0.26630038]
[1751276580584,1.3293863,653.6,653.02,0.26630038]
[1751276580787,1.3293863,653.59,653.02,0.26630038]
[1751276580989,1.5240837,653.97,653.02,0.26630038]
[1751276581187,2.8516991,653.96,653.02,0.26630038]
[1751276581384,1.3276154,653.95,653.02,0.26630038]
[1751276581684,1.3276154,653.94,653.02,0.26630038]
[1751276581888,1.3276154,653.93,653.02,0.26630038]
[1751276582084,1.3276154,653.92,653.02,0.26630038]
[1751276582283,1.5240837,653.95,653.02,0.26630038]
[1751276582284,1.3276154,653.91,653.02,0.26630038]
[1751276582489,1.3276154,653.9,653.02,0.26630038]
[1751276582688,1.3276154,653.89,653.02,0.26630038]
[1751276582888,1.3276154,653.88,653.02,0.26630038]
[1751276583086,1.3276154,653.87,652.94,1.1404175]
[1751276583286,1.3276154,653.86,652.97,0.26632076]
[1751276583486,1.3276154,653.85,652.97,0.26632076]
[1751276583687,1.3276154,653.84,652.97,0.26632076]
[1751276583889,1.3276154,653.83,652.97,0.26632076]
[1751276586787,1.3276154,653.69,652.97,0.26632076]
[1751276587092,1.3276154,653.68,652.97,0.26632076]
[1751276587393,1.3276154,653.67,652.97,0.26632076]
[1751276587687,1.3276154,653.66,652.97,0.26632076]
[1751276587892,1.3276154,653.65,652.97,0.26632076]
[1751276588188,1.3276154,653.64,652.97,1.40673826]
[1751276588388,1.3276154,653.63,652.97,1.40673826]
[1751276588590,1.3276154,653.62,652.97,1.40673826]
[1751276588786,1.3276154,653.61,652.97,1.40673826]
[1751276588986,1.3276154,653.6,652.97,1.40673826]
[1751276589187,1.3276154,653.59,652.97,1.40673826]
[1751276589390,1.3276154,653.58,652.97,1.40673826]
[1751276589590,1.3276154,653.57,652.97,1.40673826]
[1751276589786,1.3276154,653.56,652.97,1.40673826]
[1751276590087,1.3276154,653.55,652.97,1.40673826]
[1751276590392,1.3276154,653.54,652.99,1.1404175]
[1751276590588,1.3276154,653.53,652.98,1.1404175]
[1751276590787,2.2822158,653.92,652.97,1.1404175]
[1751276590788,1.3276154,653.52,652.97,1.1404175]
[1751276590989,1.5240837,653.61,652.8,0.26637478]
[1751276591190,1.3263223,653.6,652.67,1.1404175]
[1751276591393,1.3263223,653.59,652.64,1.1404175]
[1751276591594,0.26623926,654.05,648.8,15.297649]
[1751276591595,1.3263223,653.58,652.71,0.2664227]
[1751276591789,1.3263223,653.57,652.71,0.2664227]
[1751276591989,1.3263223,653.56,652.71,0.2664227]
[1751276592195,1.3263223,653.55,652.71,0.2664227]
[1751276592394,0.26623926,654.05,652.71,0.2664227]
[1751276592395,1.3263223,653.54,652.71,0.2664227]
[1751276592595,1.3263223,653.53,652.71,0.2664227]
[1751276592793,1.3263223,653.52,652.71,0.2664227]
[1751276593095,1.3263223,653.51,652.71,0.2664227]
[1751276593298,1.3263223,653.5,652.71,0.2664227]
[1751276593499,1.3263223,653.49,652.71,0.2664227]
[1751276593695,1.3263223,653.48,652.71,0.2664227]
[1751276594004,1.3263223,653.47,652.71,0.2664227]
[1751276594198,1.3263223,653.46,652.71,0.2664227]
[1751276594400,1.3263223,653.45,652.71,0.2664227]
[1751276594603,1.3263223,653.44,652.71,0.2664227]
[1751276594799,1.3263223,653.43,652.71,0.2664227]
[1751276595003,1.3263223,653.42,652.71,0.2664227]
[1751276595303,1.3263223,653.41,652.71,0.2664227]
[1751276595602,1.3263223,653.4,652.71,0.2664227]
[1751276595902,1.3263223,653.39,652.71,0.2664227]
[1751276596102,1.3263223,653.38,652.71,0.2664227]
[1751276596402,1.3263223,653.37,652.71,0.2664227]
[1751276596703,1.3263223,653.36,652.71,0.2664227]
[1751276597003,1.3263223,653.35,652.71,0.2664227]
[1751276597300,1.3263223,653.34,652.71,0.2664227]
[1751276597500,1.3263223,653.33,652.71,0.2664227]
[1751276597703,1.3263223,653.32,652.71,0.2664227]
[1751276598004,1.3263223,653.31,652.71,0.2664227]
[1751276598199,1.5240837,653.68,652.71,0.2664227]
[1751276598399,1.3218349,653.67,652.71,0.2664227]
[1751276598604,1.3218349,653.66,652.71,0.2664227]
[1751276598800,1.3218349,653.65,652.71,0.2664227]
[1751276599001,1.3218349,653.64,652.71,0.2664227]
[1751276599202,1.3218349,653.63,652.71,0.2664227]
[1751276599405,1.3218349,653.62,652.71,0.2664227]
[1751276599602,1.3218349,653.61,652.71,0.2664227]
[1751276599806,1.3218349,653.6,652.71,0.2664227]
[1751276600006,1.3218349,653.59,652.71,0.2664227]
[1751276600207,1.3218349,653.58,652.71,0.2664227]
[1751276600506,1.3218349,653.57,652.71,0.2664227]
[1751276600806,1.3218349,653.56,652.71,0.2664227]
[1751276601107,1.3218349,653.55,652.71,0.2664227]
[1751276601302,1.5240837,653.75,652.71,0.2664227]
[1751276601303,1.3218349,653.54,652.71,0.2664227]
[1751276601606,1.3218349,653.53,652.71,0.2664227]
[1751276601906,1.3218349,653.52,652.71,0.2664227]
[1751276602106,1.5240837,653.74,652.71,0.2664227]
[1751276602107,1.3218349,653.51,652.71,0.2664227]
[1751276602304,1.3218349,653.5,652.71,0.2664227]
[1751276602503,1.3218349,653.49,652.71,0.2664227]
[1751276602704,1.3218349,653.48,652.71,0.2664227]
[1751276602907,1.3218349,653.47,652.71,0.2664227]
[1751276603104,1.3218349,653.46,652.71,0.2664227]
[1751276603306,1.3218349,653.45,652.71,0.2664227]
[1751276603510,1.3218349,653.44,652.71,0.2664227]
[1751276603710,1.3218349,653.43,652.71,0.2664227]
[1751276603911,1.3218349,653.42,652.71,0.2664227]
[1751276604207,1.3218349,653.41,652.71,0.2664227]
[1751276604407,1.3218349,653.4,652.71,0.2664227]
[1751276604708,1.3218349,653.39,652.71,0.2664227]
[1751276604906,1.3218349,653.38,652.71,0.2664227]
[1751276605110,1.3218349,653.37,652.71,0.2664227]
[1751276605306,1.3218349,653.36,652.71,0.2664227]
[1751276605513,1.3218349,653.35,652.71,0.2664227]
[1751276605707,1.3218349,653.34,652.71,0.2664227]
[1751276605906,1.3218349,653.33,652.71,0.2664227]
[1751276606108,1.3218349,653.32,652.71,0.2664227]
[1751276606311,1.5240837,653.84,652.71,0.2664227]
[1751276606514,1.3208409,653.83,652.49,1.1404175]
[1751276606815,1.5240837,653.44,652.56,0.26644004]
[1751276607011,1.3208409,653.43,652.56,0.26644004]
[1751276607210,1.3208409,653.42,652.56,0.26644004]
[1751276607410,1.3208409,653.41,652.56,0.26644004]
[1751276607610,1.3208409,653.4,652.56,0.26644004]
[1751276607815,1.3208409,653.39,652.56,0.26644004]
[1751276608111,1.3208409,653.38,652.56,0.26644004]
[1751276608315,1.3208409,653.37,652.56,0.26644004]
[1751276608516,1.3208409,653.36,652.56,0.26644004]
[1751276608712,1.3208409,653.35,652.56,0.26644004]
[1751276608916,1.3208409,653.34,652.56,0.26644004]
[1751276609112,1.3208409,653.33,652.56,0.26644004]
[1751276609313,1.3208409,653.32,652.56,0.26644004]
[1751276609513,1.3208409,653.31,652.56,0.26644004]
[1751276609813,1.3208409,653.3,652.56,0.26644004]
[1751276610015,1.3208409,653.29,652.56,0.26644004]
[1751276610214,1.3208409,653.28,652.56,0.26644004]
[1751276610415,1.3208409,653.27,652.56,0.26644004]
[1751276610617,1.3208409,653.26,652.56,0.26644004]
[1751276610812,1.3208409,653.25,652.56,0.26644004]
[1751276611012,1.3208409,653.24,652.56,0.26644004]
[1751276611213,1.3208409,653.23,652.56,0.26644004]
[1751276611416,1.3208409,653.22,652.56,0.26644004]
[1751276611617,1.3208409,653.21,652.56,0.26644004]
[1751276611818,1.5240837,653.8,652.56,0.26644004]
[1751276612014,1.5240837,653.79,652.56,0.26644004]
[1751276612215,1.3185521,653.78,652.56,0.26644004]
[1751276612419,1.3185521,653.77,652.56,0.26644004]
[1751276612619,1.3185521,653.76,652.56,0.26644004]
[1751276612914,1.3185521,653.75,652.56,0.26644004]
[1751276613116,1.3185521,653.74,652.56,0.26644004]
[1751276613316,1.3185521,653.73,652.56,0.26644004]
[1751276613523,1.3185521,653.72,652.56,0.26644004]
[1751276613819,1.3185521,653.71,652.56,0.26644004]
[1751276614122,1.3185521,653.7,652.59,1.1404175]
[1751276614323,1.3185521,653.69,652.59,1.1404175]
[1751276614622,1.3185521,653.68,652.59,1.1404175]
[1751276614821,1.3185521,653.67,652.59,1.1404175]
[1751276615125,1.3185521,653.66,652.59,1.1404175]
[1751276615322,1.3185521,653.65,652.59,1.1404175]
[1751276615524,1.3185521,653.64,652.59,1.1404175]
[1751276615720,1.5240837,653.87,652.59,1.1404175]
[1751276615721,1.3185521,653.63,652.59,1.1404175]
[1751276616020,1.3185521,653.62,652.59,1.1404175]
[1751276616224,1.3185521,653.61,652.59,1.1404175]
[1751276616422,1.3185521,653.6,652.59,1.1404175]
[1751276616625,1.3185521,653.59,652.59,1.1404175]
[1751276616823,1.3185521,653.58,652.59,1.1404175]
[1751276617025,1.3185521,653.57,652.59,1.1404175]
[1751276617225,1.3185521,653.56,652.59,1.1404175]
[1751276617429,1.3185521,653.55,652.59,1.1404175]
[1751276617626,1.3185521,653.54,652.59,1.1404175]
[1751276617928,1.3185521,653.53,652.59,1.1404175]
[1751276618225,1.3185521,653.52,652.59,1.1404175]
[1751276618429,1.3185521,653.51,652.59,1.1404175]
[1751276618624,1.3185521,653.5,652.59,1.1404175]
[1751276618827,1.3185521,653.49,652.59,1.1404175]
[1751276619028,1.3185521,653.48,652.59,1.1404175]
[1751276619224,1.3185521,653.47,652.59,1.1404175]
[1751276619524,1.3185521,653.46,652.59,1.1404175]
[1751276619723,0.26623926,654.05,652.56,0.26644004]
[1751276619724,1.3185521,653.45,652.62,1.1404175]
[1751276619927,1.3185521,653.44,652.62,1.1404175]
[1751276620128,1.3185521,653.43,652.62,1.1404175]
[1751276620326,1.3185521,653.42,652.62,1.1404175]
[1751276620525,1.3185521,653.41,652.62,1.1404175]
[1751276620726,1.3185521,653.4,652.62,1.1404175]
[1751276620925,1.3185521,653.39,652.62,1.1404175]
[1751276621131,1.3185521,653.38,652.62,1.1404175]
[1751276621431,1.3185521,653.37,652.62,1.1404175]
[1751276621631,1.3185521,653.36,652.62,1.1404175]
[1751276621826,1.3185521,653.35,652.62,1.1404175]
[1751276622126,1.5240837,653.83,652.62,1.1404175]
[1751276622127,1.3185521,653.34,652.62,1.1404175]
[1751276622330,1.3185521,653.33,652.62,1.1404175]
[1751276622527,1.5240837,653.83,652.62,1.1404175]
[1751276622726,1.3179211,653.82,652.62,1.1404175]
[1751276622931,1.3179211,653.81,652.62,1.1404175]
[1751276623131,1.3179211,653.8,652.63,1.1404175]
[1751276623325,1.3179211,653.79,652.63,1.1404175]
[1751276623528,1.3179211,653.78,652.62,1.1404175]
[1751276623729,1.3179211,653.77,652.62,1.1404175]
[1751276623930,1.3179211,653.76,652.62,1.1404175]
[1751276624132,1.3179211,653.75,652.62,1.1404175]
[1751276624330,1.3179211,653.74,652.62,1.1404175]
[1751276624531,1.3179211,653.73,652.62,1.1404175]
[1751276624735,1.3179211,653.72,652.62,1.1404175]
[1751276624932,1.3179211,653.71,652.62,1.1404175]
[1751276625232,1.3179211,653.7,652.62,1.1404175]
[1751276625432,1.3179211,653.69,652.62,1.1404175]
[1751276625631,1.3179211,653.68,652.62,1.1404175]
[1751276625831,1.3179211,653.67,652.62,1.1404175]
[1751276626034,1.3179211,653.66,652.62,1.1404175]
[1751276626237,1.3179211,653.65,652.62,1.1404175]
[1751276626434,1.3179211,653.64,652.63,1.1404175]
[1751276626635,1.3179211,653.63,652.63,1.1404175]
[1751276626936,1.3179211,653.62,652.63,1.1404175]
[1751276627134,1.5240837,653.87,652.56,0.26644004]
[1751276627135,1.3179211,653.61,652.62,1.1404175]
[1751276627338,1.3179211,653.6,652.63,1.1404175]
[1751276627533,1.3179211,653.59,652.63,1.1404175]
[1751276627738,1.3179211,653.58,652.63,1.1404175]
[1751276628045,1.3179211,653.57,652.63,1.1404175]
[1751276628339,1.3179211,653.56,652.63,1.1404175]
[1751276628634,1.3179211,653.55,652.56,0.26644004]
[1751276628839,1.3179211,653.54,652.56,0.26644004]
[1751276629040,1.3179211,653.53,652.56,0.26644004]
[1751276629233,1.3179211,653.52,652.7,1.1404175]
[1751276629435,1.3179211,653.51,652.7,1.1404175]
[1751276629638,1.3179211,653.5,652.7,1.1404175]
[1751276629834,1.3179211,653.49,652.7,1.1404175]
[1751276630134,1.3179211,653.48,652.7,1.1404175]
[1751276630334,1.3179211,653.47,652.7,1.1404175]
[1751276630536,1.3179211,653.46,652.71,1.1404175]
[1751276630736,1.3179211,653.45,652.71,1.1404175]
[1751276630935,1.3179211,653.44,652.71,1.1404175]
[1751276631137,1.3179211,653.43,652.71,1.1404175]
[1751276631336,0.26623926,654.05,652.71,1.1404175]
[1751276631337,1.3179211,653.42,652.71,1.1404175]